bitfinex-derivatives/quotes_BTCF0:USTF0_20250402
["timestamp","ask_amount","ask_price","bid_price","bid_amount"]
[1743570542875,0.31262803,84490.0,84489.0,0.18011514]
[1743570544864,0.31262803,84490.0,84489.0,0.06174714]
[1743570545068,0.31262803,84490.0,84489.0,0.03574363]
[1743570545269,0.45385089,84490.0,84489.0,0.03574363]
[1743570545776,0.45385089,84490.0,84489.0,0.02025219]
[1743570546370,0.45385089,84490.0,84489.0,0.16872019]
[1743570548573,0.45385089,84490.0,84489.0,0.05035219]
[1743570548760,0.45385089,84490.0,84489.0,0.04935219]
[1743570549166,0.31262803,84490.0,84489.0,0.05031219]
[1743570549565,0.31262803,84490.0,84489.0,0.0501141]
[1743570551075,0.31262803,84490.0,84489.0,0.0200141]
[1743570551378,0.31262803,84490.0,84489.0,0.0190541]
[1743570552066,0.32436086,84490.0,84489.0,0.0190541]
[1743570553372,0.32436086,84490.0,84489.0,0.003]
[1743570553570,0.32436086,84490.0,84489.0,0.01890229]
[1743570555772,0.31262803,84490.0,84489.0,0.01890229]
[1743570556578,0.3244828,84490.0,84489.0,0.01890229]
[1743570556779,0.3244828,84490.0,84489.0,0.0189675]
[1743570556972,0.3244828,84490.0,84489.0,0.003]
[1743570557173,0.3244828,84490.0,84489.0,0.01896779]
[1743570557469,0.3244828,84490.0,84489.0,0.003]
[1743570557780,0.3244828,84490.0,84489.0,0.01905316]
[1743570558482,0.3244828,84490.0,84489.0,0.003]
[1743570559271,0.3244828,84490.0,84489.0,0.002]
[1743570560176,0.3244828,84490.0,84489.0,0.0180665]
[1743570560780,0.3244828,84490.0,84489.0,0.0180647]
[1743570561377,0.38203899,84490.0,84489.0,0.0180647]
[1743570561681,0.37018422,84490.0,84489.0,0.0180647]
[1743570561880,0.37018422,84490.0,84489.0,0.0510647]
[1743570562074,0.30658422,84490.0,84489.0,0.2001927]
[1743570562880,0.30658422,84490.0,84489.0,0.1991927]
[1743570564176,0.30658422,84490.0,84489.0,0.22506561]
[1743570564584,0.0585162,84490.0,84489.0,0.22506561]
[1743570564780,0.05755619,84490.0,84489.0,0.24051664]
[1743570565284,0.0585962,84490.0,84489.0,0.24051664]
[1743570566289,0.10693207,84490.0,84489.0,0.24151664]
[1743570566590,0.10685207,84490.0,84489.0,0.24251664]
[1743570566771,0.22521867,84490.0,84489.0,0.24269034]
[1743570567287,0.10685207,84490.0,84489.0,0.24269034]
[1743570569982,0.10685207,84490.0,84489.0,0.32765034]
[1743570570791,0.10685207,84490.0,84489.0,0.68845034]
[1743570571084,0.00096001,84490.0,84489.0,0.68888513]
[1743570571284,0.1183641,84492.0,84491.0,0.1183652]
[1743570571489,0.1189377,84495.0,84494.0,0.118361]
[1743570571689,0.11997771,84495.0,84494.0,0.1619471]
[1743570572086,0.11997771,84495.0,84494.0,0.2247471]
[1743570572281,0.11997771,84495.0,84494.0,0.21401591]
[1743570573694,0.11997771,84495.0,84494.0,0.19856488]
[1743570574392,0.11997771,84495.0,84494.0,0.58509837]
[1743570574980,0.11997771,84495.0,84494.0,0.58481522]
[1743570575893,0.11997771,84495.0,84494.0,0.22401522]
[1743570576097,0.11997771,84495.0,84494.0,0.58481522]
[1743570576396,0.00161761,84495.0,84494.0,0.58481522]
[1743570577981,0.00161761,84495.0,84494.0,0.6003706]
[1743570578986,0.11997721,84495.0,84494.0,0.60099254]
[1743570580389,0.00161761,84495.0,84494.0,0.60099254]
[1743570582799,0.0005776,84495.0,84494.0,0.60099254]
[1743570583302,0.00153761,84495.0,84494.0,0.60099254]
[1743570584996,0.00153761,84495.0,84494.0,0.55855638]
[1743570585294,0.11989721,84495.0,84494.0,0.60128647]
[1743570586492,0.11989721,84495.0,84494.0,0.60131053]
[1743570587791,0.15259721,84495.0,84494.0,0.60131053]
[1743570588498,0.15259721,84495.0,84494.0,0.56901053]
[1743570588896,0.15259721,84495.0,84494.0,0.45064953]
[1743570589209,0.15259721,84495.0,84494.0,0.17771053]
[1743570591188,0.18409721,84495.0,84494.0,0.17771053]
[1743570592204,0.31940584,84495.0,84494.0,0.17771053]
[1743570593203,0.31940584,84495.0,84494.0,0.17758393]
[1743570595308,0.31940584,84495.0,84494.0,0.17756047]
[1743570595508,0.31940584,84495.0,84494.0,0.17755674]
[1743570601104,0.68020584,84495.0,84494.0,0.05919574]
[1743570601405,0.68020584,84495.0,84494.0,0.03194013]
[1743570601705,0.68020584,84495.0,84494.0,0.03294013]
[1743570602104,0.68020584,84495.0,84494.0,0.01738475]
[1743570602306,0.82144583,84495.0,84494.0,0.01738475]
[1743570602609,0.82144583,84495.0,84494.0,0.001]
[1743570603904,0.82144583,84495.0,84494.0,0.0167953]
[1743570604704,0.82144583,84495.0,84494.0,0.0169988]
[1743570605112,0.82144583,84495.0,84494.0,0.0326195]
[1743570606418,0.73775748,84495.0,84494.0,0.0326195]
[1743570606618,0.73775748,84495.0,84494.0,0.0316195]
[1743570610207,0.73775748,84495.0,84494.0,0.0326195]
[1743570610208,0.85652106,84495.0,84494.0,0.0326195]
[1743570610419,0.85652106,84495.0,84494.0,0.0628195]
[1743570611208,0.85652106,84495.0,84494.0,0.1811805]
[1743570611414,0.85652106,84495.0,84494.0,0.1821405]
[1743570613015,0.49572106,84495.0,84494.0,0.2136405]
[1743570613615,0.31940584,84495.0,84494.0,0.21366725]
[1743570614623,0.31940584,84495.0,84494.0,0.23940712]
[1743570614919,0.31940584,84495.0,84494.0,0.23946902]
[1743570615516,0.31940584,84495.0,84494.0,0.21372913]
[1743570615719,0.31940584,84495.0,84494.0,0.09536813]
[1743570615920,0.31940584,84495.0,84494.0,0.06290813]
[1743570616122,0.31940584,84495.0,84494.0,0.18226913]
[1743570617711,0.31940584,84495.0,84494.0,0.16664843]
[1743570618617,0.31940584,84495.0,84494.0,0.16640786]
[1743570619416,0.31940584,84495.0,84494.0,0.18184422]
[1743570619815,0.31940584,84495.0,84494.0,0.21384422]
[1743570620015,0.31940584,84495.0,84494.0,0.18184422]
[1743570621121,0.31940584,84495.0,84494.0,0.16640786]
[1743570622216,0.31940584,84495.0,84494.0,0.18188713]
[1743570623131,0.31940584,84495.0,84494.0,0.1819222]
[1743570627218,0.31940584,84495.0,84494.0,0.1819148]
[1743570627925,0.31940584,84495.0,84494.0,0.16643553]
[1743570628927,0.68020584,84495.0,84494.0,0.04807453]
[1743570629114,0.68020584,84495.0,84494.0,0.04707453]
[1743570630323,0.68020584,84495.0,84494.0,0.16543553]
[1743570631430,0.68020584,84495.0,84494.0,0.16647553]
[1743570632225,0.68020584,84495.0,84494.0,0.04811453]
[1743570632528,0.73775463,84495.0,84494.0,0.04707453]
[1743570633122,0.37695463,84495.0,84494.0,0.04707453]
[1743570633519,0.37695463,84495.0,84494.0,0.04803453]
[1743570634423,0.37695463,84495.0,84494.0,0.04707453]
[1743570637431,0.37695463,84495.0,84494.0,0.0478087]
[1743570638529,0.37695463,84495.0,84494.0,0.0467687]
[1743570638934,0.37695463,84495.0,84494.0,0.0477287]
[1743570639146,0.37695463,84495.0,84494.0,0.0467687]
[1743570640331,0.37695463,84495.0,84494.0,0.1651297]
[1743570640536,0.37695463,84495.0,84494.0,0.1661297]
[1743570647445,0.37695463,84495.0,84494.0,0.16637317]
[1743570648246,0.37695463,84495.0,84494.0,0.01681217]
[1743570648541,0.118375,84484.0,84483.0,0.21304515]
[1743570648732,0.479855,84484.0,84483.0,0.21372515]
[1743570648935,0.118382,84479.0,84478.0,0.2838234]
[1743570649136,0.479862,84479.0,84478.0,0.2844234]
[1743570649337,0.1183904,84473.0,84472.0,0.35423148]
[1743570649538,0.48015041,84473.0,84472.0,0.35487148]
[1743570649845,0.60757895,84473.0,84472.0,0.35487148]
[1743570650239,0.67157895,84473.0,84472.0,0.35487148]
[1743570650444,0.67157895,84473.0,84472.0,0.00464]
[1743570650649,0.67157895,84473.0,84472.0,0.004]
[1743570651541,0.67157895,84473.0,84472.0,0.008]
[1743570652441,0.67157895,84473.0,84465.0,0.0331]
[1743570652442,0.1184045,84463.0,84462.0,7e-08]
[1743570652634,0.1184157,84455.0,84451.0,0.0331]
[1743570652830,0.48009571,84455.0,84454.0,0.00111363]
[1743570653038,0.61696191,84455.0,84454.0,0.00111363]
[1743570653232,0.1184227,84450.0,84449.0,0.35423148]
[1743570653438,0.11950271,84450.0,84449.0,0.35491148]
[1743570653637,0.24808648,84450.0,84449.0,0.35483148]
[1743570654048,0.31158648,84450.0,84449.0,0.0006]
[1743570654240,0.1184283,84446.0,84445.0,0.0308]
[1743570654441,0.48030831,84446.0,84445.0,0.0631]
[1743570654642,0.61147536,84446.0,84445.0,0.0631]
[1743570654840,0.61147536,84446.0,84445.0,0.0625]
[1743570655040,0.67497536,84446.0,84445.0,0.0625]
[1743570655239,0.61147536,84446.0,84445.0,0.1809297]
[1743570655440,0.61147536,84446.0,84445.0,0.19817047]
[1743570655748,0.48230831,84446.0,84445.0,0.19817047]
[1743570657650,0.12150831,84446.0,84445.0,0.19817047]
[1743570658144,0.12050831,84446.0,84445.0,0.19817047]
[1743570658350,0.11950831,84446.0,84445.0,0.19817047]
[1743570658651,0.10535637,84455.0,84454.0,0.1184171]
[1743570658838,0.10611637,84455.0,84454.0,0.2008571]
[1743570659149,0.10611637,84455.0,84454.0,0.21641787]
[1743570659747,0.10611637,84455.0,84454.0,0.27741787]
[1743570660143,0.10711637,84455.0,84454.0,0.27741787]
[1743570660344,0.22553207,84455.0,84454.0,0.27741787]
[1743570661136,0.22553207,84455.0,84454.0,0.29321247]
[1743570661539,0.22653207,84455.0,84454.0,0.29321247]
[1743570661746,0.1211757,84455.0,84454.0,0.29321247]
[1743570662247,0.1201757,84455.0,84454.0,0.29321247]
[1743570662437,0.00076,84455.0,84454.0,0.29321247]
[1743570662637,0.1184135,84457.0,84456.0,0.1184129]
[1743570662844,0.1192935,84457.0,84456.0,0.13496678]
[1743570663045,0.1192935,84457.0,84456.0,0.15052755]
[1743570663849,0.1192935,84457.0,84456.0,0.13469367]
[1743570664640,0.0001776,84458.0,84456.0,0.13569367]
[1743570664955,0.1184011,84469.0,84468.0,0.1183951]
[1743570665139,0.1191611,84469.0,84468.0,0.1190751]
[1743570665338,0.1191611,84469.0,84468.0,0.13463587]
[1743570666452,0.1201611,84469.0,84468.0,0.13463587]
[1743570667651,0.1211611,84469.0,84468.0,0.13463587]
[1743570670257,0.1211611,84469.0,84468.0,0.15040529]
[1743570670452,0.1211611,84469.0,84468.0,0.13463587]
[1743570670952,0.1211611,84469.0,84468.0,0.1190751]
[1743570671155,0.1201611,84469.0,84468.0,0.13476659]
[1743570671657,0.1191611,84469.0,84468.0,0.13476659]
[1743570673354,0.1191611,84469.0,84468.0,0.15057262]
[1743570673751,0.1191611,84469.0,84468.0,0.15057261]
[1743570674254,0.1191611,84469.0,84468.0,0.18207261]
[1743570674454,0.1191611,84469.0,84468.0,0.16626659]
[1743570674657,0.1191611,84469.0,84468.0,0.18206478]
[1743570674861,0.1191611,84469.0,84468.0,0.1820648]
[1743570676862,0.1191611,84469.0,84468.0,0.18207912]
[1743570677059,0.1494611,84469.0,84468.0,0.18207912]
[1743570677857,0.1494611,84469.0,84468.0,0.06368402]
[1743570678156,0.1494611,84469.0,84468.0,0.06368565]
[1743570678662,0.1494611,84469.0,84468.0,0.06343048]
[1743570678859,0.1494611,84469.0,84468.0,0.04787149]
[1743570679259,0.1494611,84469.0,84468.0,0.01637149]
[1743570680455,0.5102611,84469.0,84468.0,0.01637149]
[1743570680862,0.63566338,84469.0,84468.0,0.01637149]
[1743570681061,0.63566338,84469.0,84468.0,0.01569149]
[1743570682455,0.63566338,84469.0,84468.0,0.01637149]
[1743570682657,0.63566338,84469.0,84468.0,0.01569149]
[1743570682862,0.63566338,84469.0,84468.0,0.01637149]
[1743570683058,0.63566338,84469.0,84468.0,0.01569149]
[1743570684065,0.63566338,84469.0,84468.0,0.01637149]
[1743570684265,0.63566338,84469.0,84468.0,0.03139122]
[1743570688069,0.63566338,84469.0,84468.0,0.03215122]
[1743570688371,0.63566338,84469.0,84468.0,0.03139122]
[1743570689562,0.63566338,84469.0,84468.0,0.01569149]
[1743570689764,0.1184003,84466.0,84465.0,8e-05]
[1743570689962,0.11900031,84466.0,84465.0,8e-05]
[1743570690171,0.24322893,84466.0,84465.0,8e-05]
[1743570690769,0.24322893,84466.0,84465.0,0.0155325]
[1743570691270,0.24322893,84466.0,84465.0,0.0165325]
[1743570692469,0.24322893,84466.0,84465.0,0.001]
[1743570693066,0.3007976,84466.0,84465.0,0.001]
[1743570693865,0.3007976,84466.0,84465.0,0.01646039]
[1743570694673,0.3007976,84466.0,84465.0,0.03200006]
[1743570695670,0.1184045,84463.0,84460.0,0.0001776]
[1743570695971,0.1184045,84463.0,84460.0,0.0008576]
[1743570695972,0.1184073,84461.0,84460.0,0.0008576]
[1743570696167,0.1190473,84461.0,84460.0,0.0001776]
[1743570696368,0.31018017,84461.0,84460.0,0.0001776]
[1743570696569,0.1184129,84457.0,84456.0,8e-05]
[1743570696759,0.47981291,84457.0,84456.0,0.0156807]
[1743570696961,0.61112143,84457.0,84456.0,0.0156007]
[1743570697362,0.67552143,84457.0,84456.0,0.0156007]
[1743570697769,0.67552143,84457.0,84456.0,0.0166007]
[1743570698577,0.67552143,84457.0,84456.0,0.003]
[1743570700670,0.67552143,84457.0,84456.0,0.01852926]
[1743570701673,0.67552143,84457.0,84456.0,0.003]
[1743570704403,0.68728206,84457.0,84456.0,0.003]
[1743570705382,0.0592077,84456.0,84453.0,8e-05]
[1743570705586,0.1184171,84454.0,84453.0,8e-05]
[1743570705784,0.1190971,84454.0,84453.0,8e-05]
[1743570706087,0.1184227,84450.0,84447.0,0.0325]
[1743570706280,0.4792255,84448.0,84445.0,8e-05]
[1743570706485,0.1184325,84443.0,84442.0,0.04344557]
[1743570706781,0.1191125,84443.0,84442.0,0.03264]
[1743570707084,0.1191125,84443.0,84442.0,0.03128]
[1743570707379,0.1191125,84443.0,84442.0,0.03196]
[1743570708478,0.1201125,84443.0,84442.0,0.06188]
[1743570708787,0.1201125,84443.0,84442.0,0.06264]
[1743570709471,0.1211125,84443.0,84442.0,0.06264]
[1743570711181,0.1201125,84443.0,84442.0,0.06264]
[1743570711382,0.1191125,84443.0,84442.0,0.06264]
[1743570712983,0.1191125,84443.0,84442.0,0.1810739]
[1743570713185,0.1191125,84443.0,84442.0,0.06264]
[1743570713393,0.1191125,84443.0,84442.0,0.06188]
[1743570713890,0.1844125,84443.0,84442.0,0.06188]
[1743570715083,0.1844125,84443.0,84442.0,0.06256]
[1743570715582,0.1844125,84443.0,84442.0,0.06248]
[1743570716886,0.1521125,84443.0,84442.0,0.06248]
[1743570718888,0.1521125,84443.0,84442.0,0.0618]
[1743570719289,0.1184353,84441.0,84440.0,8e-05]
[1743570719497,0.11903531,84441.0,84440.0,8e-05]
[1743570719696,0.24964612,84441.0,84440.0,8e-05]
[1743570720197,0.27964612,84441.0,84440.0,0.00084]
[1743570720688,0.27964612,84441.0,84440.0,8e-05]
[1743570720897,0.27964612,84441.0,84440.0,0.06218]
[1743570721194,0.27964612,84441.0,84440.0,0.06294]
[1743570721597,0.27964612,84441.0,84440.0,0.06218]
[1743570723496,0.27964612,84441.0,84440.0,0.0621]
[1743570724583,0.42062767,84441.0,84440.0,0.0621]
[1743570726908,0.42062767,84441.0,84440.0,0.07755935]
[1743570727598,0.42062767,84441.0,84440.0,0.04665935]
[1743570727796,0.42062767,84441.0,84440.0,0.0312]
[1743570728793,0.42062767,84441.0,84440.0,0.0468629]
[1743570728997,0.27964612,84441.0,84440.0,0.06239968]
[1743570729496,0.00060001,84441.0,84440.0,0.54163638]
[1743570729684,0.17636373,84447.0,84440.0,0.48317788]
[1743570729889,0.29547063,84447.0,84446.0,0.1184283]
[1743570730092,0.29551063,84447.0,84446.0,0.1348512]
[1743570730291,0.29551063,84447.0,84446.0,0.15038798]
[1743570730694,0.29551063,84447.0,84446.0,0.09545968]
[1743570730886,0.29551063,84447.0,84446.0,0.06426]
[1743570731090,0.29551063,84447.0,84446.0,0.03366]
[1743570731293,0.32591063,84447.0,84446.0,0.03366]
[1743570731500,0.32591063,84447.0,84446.0,0.06426]
[1743570731892,0.32591063,84447.0,84446.0,0.07982093]
[1743570732389,0.32591063,84447.0,84446.0,0.09529347]
[1743570732585,0.29551063,84447.0,84446.0,0.09529347]
[1743570733490,0.35811063,84447.0,84446.0,0.09529347]
[1743570733698,0.32286021,84447.0,84446.0,0.09529347]
[1743570734104,0.32286021,84447.0,84446.0,0.09531387]
[1743570735301,0.32286021,84447.0,84446.0,0.09530829]
[1743570735900,0.32286021,84447.0,84446.0,0.07973254]
[1743570736301,0.1817469,84447.0,84446.0,0.09531073]
[1743570736992,0.1817469,84447.0,84446.0,0.09531027]
[1743570737304,0.1817469,84447.0,84446.0,0.09530991]
[1743570738390,0.1817469,84447.0,84446.0,0.06470991]
[1743570738600,0.30864318,84447.0,84446.0,0.06470991]
[1743570739200,0.30864318,84447.0,84446.0,0.06394991]
[1743570740300,0.30864318,84447.0,84446.0,0.06412372]
[1743570742203,0.30864318,84447.0,84446.0,0.06406179]
[1743570744003,0.30864318,84447.0,84446.0,0.04837254]
[1743570744796,0.30864318,84447.0,84446.0,0.0329]
[1743570751007,0.30864318,84447.0,84446.0,0.04847349]
[1743570751305,0.30864318,84447.0,84446.0,0.06394529]
[1743570752604,0.30864318,84447.0,84446.0,0.06395145]
[1743570753205,0.30864318,84447.0,84446.0,0.03105145]
[1743570753407,0.30864318,84447.0,84446.0,0.03181145]
[1743570754009,0.30864318,84447.0,84446.0,0.0162318]
[1743570754209,0.30864318,84447.0,84446.0,0.00076]
[1743570755901,0.30864318,84447.0,84446.0,0.0163055]
[1743570756215,0.30864318,84447.0,84446.0,0.03175336]
[1743570758014,0.30864318,84447.0,84446.0,0.01620759]
[1743570759305,0.1184297,84445.0,84444.0,8e-05]
[1743570759505,0.1184381,84439.0,84435.0,0.0305]
[1743570759718,0.47983811,84439.0,84438.0,0.00119372]
[1743570759920,0.61310993,84439.0,84438.0,0.00119372]
[1743570760112,0.61310993,84439.0,84438.0,0.03169372]
[1743570760309,0.71040993,84439.0,84438.0,0.03169372]
[1743570762023,0.71040993,84439.0,84438.0,0.04727451]
[1743570763221,0.76799675,84439.0,84438.0,0.04727451]
[1743570763420,0.76799675,84439.0,84438.0,0.04655451]
[1743570763817,0.76799675,84439.0,84438.0,0.07755451]
[1743570764721,0.1184395,84438.0,84437.0,1e-08]
[1743570764919,0.11903951,84438.0,84437.0,0.01571465]
[1743570765108,0.31339544,84438.0,84437.0,0.01571465]
[1743570771814,0.67419544,84438.0,84437.0,0.01571465]
[1743570772621,0.1184423,84436.0,84435.0,0.0323]
[1743570772829,0.11904231,84436.0,84435.0,0.0323]
[1743570773021,0.24933109,84436.0,84435.0,0.0323]
[1743570775821,0.31173109,84436.0,84435.0,0.0323]
[1743570776331,0.24933109,84436.0,84435.0,0.0323]
[1743570776623,0.24933109,84436.0,84435.0,0.06428]
[1743570776829,0.24933109,84436.0,84435.0,0.08023059]
[1743570777027,0.28033109,84436.0,84435.0,0.08023059]
[1743570777326,0.28033109,84436.0,84435.0,0.09497972]
[1743570779438,0.28033109,84436.0,84435.0,0.07955059]
[1743570779619,0.31363109,84436.0,84435.0,0.07955059]
[1743570779820,0.31363109,84436.0,84435.0,0.04825059]
[1743570780021,0.31363109,84436.0,84435.0,0.01595059]
[1743570781522,0.1184437,84435.0,84434.0,0.0303]
[1743570781723,0.1190837,84435.0,84434.0,0.04606848]
[1743570781931,0.1839837,84435.0,84434.0,0.04606848]
[1743570782125,0.1839837,84435.0,84434.0,0.04603745]
[1743570783229,0.1839837,84435.0,84434.0,0.01573745]
[1743570783735,0.1839837,84435.0,84434.0,0.04823745]
[1743570784930,0.1839837,84435.0,84434.0,0.07883745]
[1743570785122,0.1839837,84435.0,84434.0,0.07955745]
[1743570785328,0.1515837,84435.0,84434.0,0.07955745]
[1743570785539,0.1515837,84435.0,84434.0,0.19800255]
[1743570786128,0.1515837,84435.0,84434.0,0.21355782]
[1743570786328,0.1515837,84435.0,84434.0,0.23943432]
[1743570786734,0.1515837,84435.0,84434.0,0.12098922]
[1743570786946,0.29259261,84435.0,84434.0,0.12098922]
[1743570789631,0.29259261,84435.0,84434.0,0.60023432]
[1743570791530,0.1515837,84435.0,84434.0,0.60023432]
[1743570792228,0.1515837,84435.0,84434.0,0.60137096]
[1743570793330,0.1190837,84435.0,84434.0,0.60137096]
[1743570794449,0.1190837,84435.0,84434.0,0.60173485]
[1743570797335,0.1190837,84435.0,84434.0,0.60175383]
[1743570797937,0.1190837,84435.0,84434.0,0.55862037]
[1743570798348,0.1190837,84435.0,84434.0,0.60163477]
[1743570799545,0.1505837,84435.0,84434.0,0.60163477]
[1743570802944,0.1505837,84435.0,84434.0,0.24083477]
[1743570803143,0.1505837,84435.0,84434.0,0.60163477]
[1743570803338,0.1505837,84435.0,84434.0,0.24083477]
[1743570803538,0.1505837,84435.0,84434.0,0.60163477]
[1743570804645,0.1505837,84435.0,84434.0,0.48318967]
[1743570805850,0.1505837,84435.0,84434.0,0.48329934]
[1743570806048,0.1505837,84435.0,84434.0,0.60119165]
[1743570806241,0.1505837,84435.0,84434.0,0.12194655]
[1743570806447,0.1505837,84435.0,84434.0,0.05884655]
[1743570806846,0.1505837,84435.0,84434.0,0.03271633]
[1743570807154,0.1505837,84435.0,84434.0,0.03267633]
[1743570807452,0.1505837,84435.0,84434.0,0.03224692]
[1743570807848,0.1505837,84435.0,84434.0,0.01658198]
[1743570808248,0.1505837,84435.0,84434.0,0.01646653]
[1743570811158,0.1505837,84435.0,84434.0,0.01578653]
[1743570811348,0.1505837,84435.0,84434.0,0.04648653]
[1743570814249,0.1505837,84435.0,84434.0,0.07838653]
[1743570815050,0.1505837,84435.0,84434.0,0.04648653]
[1743570815952,0.1505837,84435.0,84434.0,0.04716653]
[1743570816155,0.1505837,84435.0,84434.0,0.04648653]
[1743570816359,0.1505837,84435.0,84434.0,0.0464214]
[1743570817758,0.1505837,84435.0,84434.0,0.0471014]
[1743570817959,0.1505837,84435.0,84434.0,0.0464214]
[1743570818860,0.1505837,84435.0,84434.0,0.0471814]
[1743570819049,0.1505837,84435.0,84434.0,0.0464214]
[1743570819456,0.1505837,84435.0,84434.0,0.0157214]
[1743570819766,0.1184451,84434.0,84433.0,8e-05]
[1743570819963,0.1505251,84434.0,84433.0,0.00076]
[1743570828873,0.1505251,84434.0,84433.0,0.0163721]
[1743570830073,0.1505251,84434.0,84433.0,0.0156921]
[1743570831077,0.1505251,84434.0,84433.0,0.0163721]
[1743570831374,0.1505251,84434.0,84433.0,0.0156921]
[1743570831677,0.1505251,84434.0,84433.0,0.0163721]
[1743570832394,0.1505251,84434.0,84433.0,0.01638542]
[1743570833093,0.1505251,84434.0,84433.0,0.01570542]
[1743570833482,0.1505251,84434.0,84433.0,0.01638542]
[1743570833794,0.1505251,84434.0,84433.0,0.01570542]
[1743570835289,0.1505251,84434.0,84433.0,0.01646542]
[1743570835490,0.1505251,84434.0,84433.0,0.01570542]
[1743570836195,0.1505251,84434.0,84433.0,0.01638542]
[1743570836496,0.1505251,84434.0,84433.0,0.01570542]
[1743570836691,0.1505251,84434.0,84433.0,0.01562542]
[1743570837396,0.1505251,84434.0,84433.0,0.01630542]
[1743570837787,0.1505251,84434.0,84433.0,0.01562542]
[1743570837983,0.1505251,84434.0,84433.0,0.01634542]
[1743570838393,0.1184465,84433.0,84432.0,0.0315]
[1743570838594,0.1505265,84433.0,84432.0,0.04788075]
[1743570839991,0.1814265,84433.0,84432.0,0.04788075]
[1743570843805,0.1814265,84433.0,84432.0,0.06348258]
[1743570843993,0.1814265,84433.0,84432.0,0.08943274]
[1743570848206,0.1814265,84433.0,84432.0,0.08994723]
[1743570848806,0.1814265,84433.0,84432.0,0.05844723]
[1743570850101,0.1814265,84433.0,84432.0,0.058338]
[1743570852093,0.1814265,84433.0,84432.0,0.05833554]
[1743570856707,0.31827198,84433.0,84432.0,0.05833554]
[1743570857307,0.31827198,84433.0,84432.0,0.03245633]
[1743570859104,0.31827198,84433.0,84432.0,0.03235965]
[1743570859311,0.31827198,84433.0,84432.0,0.01628183]
[1743570860110,0.31827198,84433.0,84432.0,0.03235966]
[1743570861315,0.31827198,84433.0,84432.0,0.03235274]
[1743570862107,0.31827198,84433.0,84432.0,0.01628183]
[1743570862413,0.31827198,84433.0,84432.0,0.03237319]
[1743570863613,0.31827198,84433.0,84432.0,0.03169319]
[1743570864215,0.31827198,84433.0,84432.0,0.03237319]
[1743570865218,0.1184578,84425.0,84408.0,0.3608]
[1743570865517,0.4799378,84425.0,84424.0,0.0006]
[1743570865724,0.60760632,84425.0,84424.0,0.0006]
[1743570865909,0.1184634,84421.0,84418.0,0.35423148]
[1743570866216,0.1184634,84421.0,84411.0,8e-05]
[1743570866217,0.1184732,84414.0,84411.0,8e-05]
[1743570866405,0.48015321,84414.0,84413.0,0.42567777]
[1743570866610,0.61130531,84414.0,84413.0,0.42567777]
[1743570867114,0.67540531,84414.0,84413.0,0.42567777]
[1743570867608,0.68748304,84414.0,84413.0,0.42567777]
[1743570868206,0.67540531,84414.0,84413.0,0.42567777]
[1743570870718,0.67540531,84414.0,84413.0,0.54415237]
[1743570870911,0.51155321,84414.0,84413.0,0.54415237]
[1743570871311,0.56915873,84414.0,84413.0,0.1190746]
[1743570872221,0.56915873,84414.0,84413.0,0.0006]
[1743570872413,0.56915873,84414.0,84413.0,0.1184746]
[1743570872617,0.56915873,84414.0,84413.0,0.1191546]
[1743570873118,0.20835873,84414.0,84413.0,0.1191546]
[1743570874220,0.20835873,84414.0,84413.0,0.00068]
[1743570874422,0.118476,84412.0,84411.0,0.03288]
[1743570874610,0.11935601,84412.0,84411.0,0.03348]
[1743570874815,0.25429032,84412.0,84411.0,0.03348]
[1743570875114,0.25429032,84412.0,84411.0,0.00068]
[1743570875312,0.25429032,84412.0,84411.0,8e-05]
[1743570875712,0.31579032,84412.0,84411.0,8e-05]
[1743570876114,0.1184774,84411.0,84410.0,0.01699328]
[1743570876321,0.14965741,84411.0,84410.0,0.01699328]
[1743570876524,0.30364293,84411.0,84410.0,0.01699328]
[1743570877414,0.30464293,84411.0,84410.0,0.01699328]
[1743570878213,0.30364293,84411.0,84410.0,0.01699328]
[1743570878622,0.30464293,84411.0,84410.0,0.01699328]
[1743570879016,0.30364293,84411.0,84410.0,0.01699328]
[1743570879922,0.30364293,84411.0,84410.0,0.13547208]
[1743570880119,0.30364293,84411.0,84410.0,0.13607208]
[1743570880328,0.30364293,84411.0,84410.0,0.19917208]
[1743570880820,0.30364293,84411.0,84410.0,0.08069328]
[1743570882214,0.40914213,84411.0,84410.0,0.19917208]
[1743570884522,0.40914213,84411.0,84410.0,0.08069328]
[1743570884832,0.40914213,84411.0,84410.0,0.16907208]
[1743570885021,0.40914213,84411.0,84410.0,0.05059328]
[1743570886128,0.30364293,84411.0,84410.0,0.05059328]
[1743570889134,0.30364293,84411.0,84410.0,0.16907208]
[1743570893327,0.44439595,84411.0,84410.0,0.16907208]
[1743570893741,0.44439595,84411.0,84410.0,0.05059328]
[1743570894037,0.44439595,84411.0,84410.0,0.04999328]
[1743570894539,0.44439595,84411.0,84410.0,0.05059328]
[1743570894730,0.44439595,84411.0,84410.0,0.04999328]
[1743570895336,0.44439595,84411.0,84410.0,0.16847208]
[1743570895535,0.44439595,84411.0,84410.0,0.16915208]
[1743570895840,0.44439595,84411.0,84410.0,0.05067328]
[1743570896031,0.44439595,84411.0,84410.0,0.04999328]
[1743570896736,0.36124789,84411.0,84410.0,0.05059328]
[1743570897441,0.36124789,84411.0,84410.0,0.04999328]
[1743570897742,0.36124789,84411.0,84410.0,0.05063328]
[1743570897936,0.36124789,84411.0,84410.0,0.01699328]
[1743570899232,0.1184816,84408.0,84407.0,8e-05]
[1743570899434,0.11936161,84408.0,84407.0,8e-05]
[1743570899640,0.11936161,84408.0,84406.0,0.0004739]
[1743570899641,0.118483,84407.0,84406.0,0.0004739]
[1743570899836,0.21386301,84407.0,84406.0,0.0010739]
[1743570900042,0.34400329,84407.0,84406.0,0.0010739]
[1743570901344,0.35905763,84407.0,84406.0,0.0010739]
[1743570902137,0.36729565,84407.0,84406.0,0.0010739]
[1743570902947,0.1184914,84401.0,84400.0,0.11127324]
[1743570903147,0.13618448,84401.0,84400.0,0.11187324]
[1743570903451,0.29860624,84401.0,84400.0,0.11127324]
[1743570904341,0.29960624,84401.0,84400.0,0.11127324]
[1743570904943,0.30060624,84401.0,84400.0,0.11127324]
[1743570905552,0.31184591,84401.0,84400.0,0.11127324]
[1743570905748,0.0592487,84397.0,84394.0,8e-05]
[1743570906045,0.0592487,84397.0,84390.0,0.36442272]
[1743570906046,0.1185055,84391.0,84390.0,0.36442272]
[1743570906344,0.0592564,84386.0,84383.0,8e-05]
[1743570906545,0.4793153,84384.0,84383.0,0.0006]
[1743570906748,0.50574693,84384.0,84383.0,8e-05]
[1743570907044,0.1185251,84377.0,84376.0,0.0321]
[1743570907244,0.14491674,84377.0,84376.0,0.0327]
[1743570907455,0.14491674,84377.0,84376.0,0.1512265]
[1743570907643,0.14491674,84377.0,84376.0,0.0648]
[1743570907833,0.17821674,84377.0,84376.0,0.0321]
[1743570908034,0.18645476,84377.0,84376.0,0.1506265]
[1743570908239,0.18645476,84377.0,84376.0,0.0327]
[1743570908448,0.1185279,84375.0,84374.0,0.00055408]
[1743570908647,0.14495953,84375.0,84374.0,0.00055408]
[1743570908949,0.14495953,84375.0,84370.0,8e-05]